[Event "Titled Tuesday Blitz October 31 Early 2023"]
[White "Theodorou, Nikolas"]
[Black "Arias, Juan Cruz"]
[WhiteFideId "4262875"]
[BlackFideId "118540"]
[WhiteElo "3005"]
[BlackElo "2632"]
[Result "1/2-1/2"]
[Round "2"]
[TimeControl "180+1"]
[Date "2023.10.31"]
[WhiteClock "0:01:17"]
[BlackClock "0:00:36"]
[Board "12"]

1. a3 {[%clk 0:03:00]}  d5 {[%clk 0:02:59]} 2. e3 {[%clk 0:03:01]}  e5 {[%clk 0:02:57]} 3. d4 {[%clk 0:03:02]}  exd4 {[%clk 0:02:53]} 4. exd4 {[%clk 0:03:03]}  Nf6 {[%clk 0:02:53]} 5. Nf3 {[%clk 0:03:03]}  c5 {[%clk 0:02:52]} 6. Bb5+ {[%clk 0:03:02]}  Nc6 {[%clk 0:02:51]} 7. O-O {[%clk 0:03:02]}  Be7 {[%clk 0:02:52]} 8. dxc5 {[%clk 0:03:02]}  Bxc5 {[%clk 0:02:52]} 9. Re1+ {[%clk 0:03:02]}  Be6 {[%clk 0:02:51]} 10. Nd4 {[%clk 0:03:03]}  O-O {[%clk 0:02:50]} 11. Be3 {[%clk 0:02:54]}  Nxd4 {[%clk 0:02:22]} 12. Bxd4 {[%clk 0:02:55]}  Qb6 {[%clk 0:02:20]} 13. Bxc5 {[%clk 0:02:56]}  Qxc5 {[%clk 0:02:19]} 14. Bd3 {[%clk 0:02:56]}  Ne4 {[%clk 0:02:12]} 15. Bxe4 {[%clk 0:02:31]}  dxe4 {[%clk 0:02:10]} 16. Rxe4 {[%clk 0:02:32]}  Bf5 {[%clk 0:02:02]} 17. Re1 {[%clk 0:02:01]}  Qxc2 {[%clk 0:01:56]} 18. Qxc2 {[%clk 0:02:00]}  Bxc2 {[%clk 0:01:55]} 19. Nc3 {[%clk 0:02:01]}  Rfe8 {[%clk 0:01:54]} 20. f3 {[%clk 0:01:56]}  Bb3 {[%clk 0:01:45]} 21. Kf2 {[%clk 0:01:56]}  Kf8 {[%clk 0:01:44]} 22. h4 {[%clk 0:01:55]}  Rxe1 {[%clk 0:01:42]} 23. Rxe1 {[%clk 0:01:56]}  Rd8 {[%clk 0:01:41]} 24. Ne4 {[%clk 0:01:45]}  b6 {[%clk 0:01:38]} 25. Re3 {[%clk 0:01:39]}  Be6 {[%clk 0:01:30]} 26. Ke1 {[%clk 0:01:37]}  h6 {[%clk 0:01:30]} 27. Nc3 {[%clk 0:01:37]}  Bc4 {[%clk 0:01:26]} 28. Re4 {[%clk 0:01:37]}  Re8 {[%clk 0:01:25]} 29. Kd2 {[%clk 0:01:36]}  Rxe4 {[%clk 0:01:25]} 30. Nxe4 {[%clk 0:01:37]}  Ke7 {[%clk 0:01:25]} 31. Ke3 {[%clk 0:01:38]}  Ke6 {[%clk 0:01:24]} 32. Kd4 {[%clk 0:01:38]}  Bf1 {[%clk 0:01:24]} 33. g3 {[%clk 0:01:38]}  Bg2 {[%clk 0:01:23]} 34. Nd2 {[%clk 0:01:39]}  Bh3 {[%clk 0:01:16]} 35. Nc4 {[%clk 0:01:39]}  Bf5 {[%clk 0:01:15]} 36. Ne3 {[%clk 0:01:38]}  Bb1 {[%clk 0:01:14]} 37. b4 {[%clk 0:01:39]}  Ba2 {[%clk 0:01:14]} 38. Ng2 {[%clk 0:01:39]}  g5 {[%clk 0:01:14]} 39. hxg5 {[%clk 0:01:37]}  hxg5 {[%clk 0:01:15]} 40. Ne3 {[%clk 0:01:38]}  f6 {[%clk 0:01:14]} 41. Nd1 {[%clk 0:01:36]}  Bd5 {[%clk 0:01:13]} 42. f4 {[%clk 0:01:31]}  gxf4 {[%clk 0:01:10]} 43. gxf4 {[%clk 0:01:32]}  Bc6 {[%clk 0:01:10]} 44. Ne3 {[%clk 0:01:33]}  Ba4 {[%clk 0:01:07]} 45. f5+ {[%clk 0:01:32]}  Kd6 {[%clk 0:01:07]} 46. Ke4 {[%clk 0:01:20]}  Bb3 {[%clk 0:01:00]} 47. Ng4 {[%clk 0:01:18]}  Ke7 {[%clk 0:00:58]} 48. Ne3 {[%clk 0:01:17]}  Kd6 {[%clk 0:00:58]} 49. Kd4 {[%clk 0:01:17]}  Ba2 {[%clk 0:00:57]} 50. Ng4 {[%clk 0:01:16]}  Bb1 {[%clk 0:00:54]} 51. Nh6 {[%clk 0:01:15]}  Bc2 {[%clk 0:00:51]} 52. Ng8 {[%clk 0:01:11]}  Bxf5 {[%clk 0:00:49]} 53. Nxf6 {[%clk 0:01:12]}  Bc8 {[%clk 0:00:48]} 54. Ne4+ {[%clk 0:01:13]}  Kc6 {[%clk 0:00:48]} 55. Nc3 {[%clk 0:01:13]}  Be6 {[%clk 0:00:44]} 56. Ke5 {[%clk 0:01:07]}  Bc4 {[%clk 0:00:43]} 57. Ke4 {[%clk 0:01:07]}  a5 {[%clk 0:00:41]} 58. Kd4 {[%clk 0:01:08]}  axb4 {[%clk 0:00:40]} 59. axb4 {[%clk 0:01:09]}  Bf1 {[%clk 0:00:39]} 60. Ne4 {[%clk 0:01:10]}  Be2 {[%clk 0:00:38]} 61. Kc3 {[%clk 0:01:10]}  Bf1 {[%clk 0:00:37]} 62. Ng3 {[%clk 0:01:10]}  Bg2 {[%clk 0:00:37]} 63. Nf5 {[%clk 0:01:11]}  Bh1 {[%clk 0:00:36]} 64. Ng3 {[%clk 0:01:11]}  Bf3 {[%clk 0:00:35]} 65. Nf1 {[%clk 0:01:11]}  Kd5 {[%clk 0:00:35]} 66. Nd2 {[%clk 0:01:12]}  Bg4 {[%clk 0:00:35]} 67. Nb3 {[%clk 0:01:12]}  Kc6 {[%clk 0:00:35]} 68. Nd4+ {[%clk 0:01:13]}  Kd5 {[%clk 0:00:34]} 69. Nc2 {[%clk 0:01:14]}  Bh3 {[%clk 0:00:33]} 70. Ne3+ {[%clk 0:01:14]}  Kc6 {[%clk 0:00:34]} 71. Nc4 {[%clk 0:01:14]}  Kb5 {[%clk 0:00:34]} 72. Nd6+ {[%clk 0:01:15]}  Kc6 {[%clk 0:00:35]} 73. Ne4 {[%clk 0:01:15]}  Bg4 {[%clk 0:00:35]} 74. Nf6 {[%clk 0:01:16]}  Bc8 {[%clk 0:00:35]} 75. Nh5 {[%clk 0:01:16]}  Bb7 {[%clk 0:00:36]} 76. Nf4 {[%clk 0:01:17]}  Kb5 {[%clk 0:00:36]} 77. Ne6 {[%clk 0:01:16]}  Kc6 {[%clk 0:00:36]} 78. Nd8+ {[%clk 0:01:15]}  Kc7 {[%clk 0:00:35]} 79. Nf7 {[%clk 0:01:16]}  Kc6 {[%clk 0:00:35]} 80. Kc4 {[%clk 0:01:15]}  Kc7 {[%clk 0:00:36]} 81. Ne5 {[%clk 0:01:15]}  Ba6+ {[%clk 0:00:35]} 82. Kd4 {[%clk 0:01:15]}  Bf1 {[%clk 0:00:35]} 83. Ng4 {[%clk 0:01:15]}  Kd6 {[%clk 0:00:35]} 84. Ne3 {[%clk 0:01:16]}  Bh3 {[%clk 0:00:35]} 85. Nc4+ {[%clk 0:01:16]}  Kc7 {[%clk 0:00:36]} 86. Ne5 {[%clk 0:01:13]}  Be6 {[%clk 0:00:36]} 87. Ng6 {[%clk 0:01:13]}  Kd6 {[%clk 0:00:36]} 88. Nf4 {[%clk 0:01:14]}  Bf7 {[%clk 0:00:36]} 89. Ne2 {[%clk 0:01:15]}  Kc7 {[%clk 0:00:36]} 90. Nc3 {[%clk 0:01:16]}  Kc6 {[%clk 0:00:36]} 91. Ne4 {[%clk 0:01:15]}  Bg6 {[%clk 0:00:36]} 92. Nf6 {[%clk 0:01:15]}  Bf7 {[%clk 0:00:36]} 93. Kc3 {[%clk 0:01:15]}  Be6 {[%clk 0:00:36]} 94. Nh5 {[%clk 0:01:15]}  Kd6 {[%clk 0:00:36]} 95. Nf4 {[%clk 0:01:16]}  Bf7 {[%clk 0:00:36]} 96. Ne2 {[%clk 0:01:17]}  Kc6 {[%clk 0:00:37]} 97. Nd4+ {[%clk 0:01:18]}  Kd5 {[%clk 0:00:37]} 98. Nf5 {[%clk 0:01:18]}  Be8 {[%clk 0:00:37]} 99. Ne3+ {[%clk 0:01:17]}  Kc6 {[%clk 0:00:37]} 100. Nc4 {[%clk 0:01:18]}  Bh5 {[%clk 0:00:37]} 101. Na3 {[%clk 0:01:16]}  Kd5 {[%clk 0:00:37]} 102. Nb5 {[%clk 0:01:15]}  Be2 {[%clk 0:00:36]} 103. Nd4 {[%clk 0:01:16]}  Bg4 {[%clk 0:00:35]} 104. Nc2 {[%clk 0:01:16]}  Bd7 {[%clk 0:00:35]} 105. Ne3+ {[%clk 0:01:16]}  Kc6 {[%clk 0:00:36]} 106. Kc4 {[%clk 0:01:16]}  Be6+ {[%clk 0:00:36]} 107. Kd4 {[%clk 0:01:17]}  Bf7 {[%clk 0:00:37]} 108. Nf5 {[%clk 0:01:17]}  Kb5 {[%clk 0:00:36]} 109. Kc3 {[%clk 0:01:17]} 1/2-1/2


[Site "https://www.chess.com"]

[Event "Titled Tuesday Blitz October 31 Early 2023"]
[White "Kashefi, Amir Hosein"]
[Black "Shimanov, Aleksandr"]
[WhiteFideId "12557935"]
[BlackFideId "4198603"]
[WhiteElo "2624"]
[BlackElo "2972"]
[Result "0-1"]
[Round "2"]
[TimeControl "180+1"]
[Date "2023.10.31"]
[WhiteClock "0:00:00"]
[BlackClock "0:00:43"]
[Board "16"]

1. d4 {[%clk 0:02:50]}  d5 {[%clk 0:02:53]} 2. c4 {[%clk 0:02:49]}  e6 {[%clk 0:02:53]} 3. Nc3 {[%clk 0:02:47]}  Nf6 {[%clk 0:02:52]} 4. cxd5 {[%clk 0:02:39]}  exd5 {[%clk 0:02:53]} 5. Bg5 {[%clk 0:02:39]}  c6 {[%clk 0:02:54]} 6. Qc2 {[%clk 0:02:39]}  Bd6 {[%clk 0:02:47]} 7. e3 {[%clk 0:02:32]}  O-O {[%clk 0:02:43]} 8. Bd3 {[%clk 0:02:31]}  h6 {[%clk 0:02:43]} 9. Bh4 {[%clk 0:02:30]}  Be6 {[%clk 0:02:42]} 10. Nge2 {[%clk 0:02:29]}  Nbd7 {[%clk 0:02:42]} 11. Bg3 {[%clk 0:02:29]}  Qb8 {[%clk 0:02:37]} 12. O-O {[%clk 0:02:28]}  Re8 {[%clk 0:02:36]} 13. a3 {[%clk 0:02:28]}  a5 {[%clk 0:02:35]} 14. b4 {[%clk 0:02:21]}  b5 {[%clk 0:02:20]} 15. Nf4 {[%clk 0:02:15]}  Nb6 {[%clk 0:02:05]} 16. Nxe6 {[%clk 0:02:00]}  Rxe6 {[%clk 0:02:06]} 17. Bf5 {[%clk 0:01:57]}  Re8 {[%clk 0:02:04]} 18. e4 {[%clk 0:01:51]}  Bxg3 {[%clk 0:01:56]} 19. hxg3 {[%clk 0:01:47]}  Qb7 {[%clk 0:01:31]} 20. Rfe1 {[%clk 0:01:38]}  Nc4 {[%clk 0:01:21]} 21. exd5 {[%clk 0:01:32]}  Rxe1+ {[%clk 0:01:14]} 22. Rxe1 {[%clk 0:01:30]}  cxd5 {[%clk 0:01:15]} 23. Nb1 {[%clk 0:00:36]}  a4 {[%clk 0:01:10]} 24. Qe2 {[%clk 0:00:26]}  g6 {[%clk 0:01:08]} 25. Bd3 {[%clk 0:00:26]}  Qb6 {[%clk 0:01:07]} 26. Bxc4 {[%clk 0:00:22]}  dxc4 {[%clk 0:01:06]} 27. Qd2 {[%clk 0:00:20]}  Rd8 {[%clk 0:01:03]} 28. Qxh6 {[%clk 0:00:19]}  Qxd4 {[%clk 0:01:04]} 29. Qg5 {[%clk 0:00:19]}  Rd5 {[%clk 0:01:00]} 30. Qc1 {[%clk 0:00:15]}  Ne4 {[%clk 0:00:58]} 31. Re3 {[%clk 0:00:05]}  Qd1+ {[%clk 0:00:55]} 32. Re1 {[%clk 0:00:05]}  Qxc1 {[%clk 0:00:44]} 33. Rxc1 {[%clk 0:00:05]}  Rd3 {[%clk 0:00:45]} 34. f3 {[%clk 0:00:05]}  Nxg3 {[%clk 0:00:45]} 35. Kf2 {[%clk 0:00:06]}  Nf5 {[%clk 0:00:45]} 36. Nc3 {[%clk 0:00:06]}  Nd4 {[%clk 0:00:45]} 37. g4 {[%clk 0:00:02]}  Kg7 {[%clk 0:00:44]} 38. f4 {[%clk 0:00:02]}  Rf3+ {[%clk 0:00:42]} 39. Kg2 {[%clk 0:00:02]}  Rxf4 {[%clk 0:00:42]} 40. Kg3 {[%clk 0:00:00]}  Rf3+ {[%clk 0:00:43]} 0-1


[Site "https://www.chess.com"]

[Event "Titled Tuesday Blitz October 31 Early 2023"]
[White "Xu, Xiangyu"]
[Black "Ergali_Suleimen"]
[WhiteFideId "8608288"]
[WhiteElo "2929"]
[BlackElo "2617"]
[Result "1-0"]
[Round "2"]
[TimeControl "180+1"]
[Date "2023.10.31"]
[WhiteClock "0:00:07"]
[BlackClock "0:00:00"]
[Board "18"]

1. d4 {[%clk 0:02:57]}  Nf6 {[%clk 0:02:59]} 2. c4 {[%clk 0:02:56]}  g6 {[%clk 0:03:00]} 3. Nc3 {[%clk 0:02:55]}  Bg7 {[%clk 0:03:00]} 4. e4 {[%clk 0:02:52]}  d6 {[%clk 0:03:00]} 5. Be2 {[%clk 0:02:48]}  O-O {[%clk 0:02:57]} 6. Be3 {[%clk 0:02:49]}  e5 {[%clk 0:02:53]} 7. d5 {[%clk 0:02:48]}  Nbd7 {[%clk 0:02:39]} 8. f3 {[%clk 0:02:43]}  Ne8 {[%clk 0:02:33]} 9. Nh3 {[%clk 0:02:42]}  f5 {[%clk 0:02:22]} 10. Qc2 {[%clk 0:02:31]}  Qe7 {[%clk 0:02:07]} 11. O-O-O {[%clk 0:02:28]}  f4 {[%clk 0:02:06]} 12. Bg1 {[%clk 0:02:22]}  a6 {[%clk 0:01:52]} 13. Kb1 {[%clk 0:02:21]}  Nc5 {[%clk 0:01:42]} 14. Nf2 {[%clk 0:02:18]}  Nf6 {[%clk 0:01:36]} 15. Nd3 {[%clk 0:02:17]}  Nxd3 {[%clk 0:01:36]} 16. Bxd3 {[%clk 0:02:16]}  Nd7 {[%clk 0:01:36]} 17. Be2 {[%clk 0:02:13]}  b6 {[%clk 0:01:32]} 18. Bf2 {[%clk 0:02:11]}  Nc5 {[%clk 0:01:30]} 19. g3 {[%clk 0:01:59]}  Bd7 {[%clk 0:01:21]} 20. b4 {[%clk 0:01:44]}  Nb7 {[%clk 0:01:19]} 21. a3 {[%clk 0:01:44]}  a5 {[%clk 0:01:18]} 22. Kb2 {[%clk 0:01:42]}  Bf6 {[%clk 0:01:07]} 23. Rhf1 {[%clk 0:01:37]}  Kh8 {[%clk 0:01:03]} 24. Nb5 {[%clk 0:01:23]}  Be8 {[%clk 0:00:55]} 25. Ra1 {[%clk 0:01:15]}  Nd8 {[%clk 0:00:54]} 26. g4 {[%clk 0:01:08]}  Nf7 {[%clk 0:00:42]} 27. bxa5 {[%clk 0:01:03]}  Rxa5 {[%clk 0:00:41]} 28. a4 {[%clk 0:01:03]}  Bxb5 {[%clk 0:00:36]} 29. cxb5 {[%clk 0:01:01]}  Ra7 {[%clk 0:00:30]} 30. Be1 {[%clk 0:01:02]}  Bh4 {[%clk 0:00:28]} 31. Bb4 {[%clk 0:01:02]}  Nd8 {[%clk 0:00:20]} 32. a5 {[%clk 0:01:00]}  bxa5 {[%clk 0:00:20]} 33. Rxa5 {[%clk 0:01:01]}  Rxa5 {[%clk 0:00:20]} 34. Bxa5 {[%clk 0:01:02]}  Rf7 {[%clk 0:00:20]} 35. Rc1 {[%clk 0:01:01]}  Nb7 {[%clk 0:00:19]} 36. Qxc7 {[%clk 0:00:59]}  Nxa5 {[%clk 0:00:20]} 37. Qxa5 {[%clk 0:01:00]}  Bf2 {[%clk 0:00:19]} 38. Rc6 {[%clk 0:00:58]}  Bd4+ {[%clk 0:00:20]} 39. Kb3 {[%clk 0:00:58]}  Qh4 {[%clk 0:00:19]} 40. b6 {[%clk 0:00:33]}  Qf2 {[%clk 0:00:18]} 41. Qa6 {[%clk 0:00:33]}  Qe3+ {[%clk 0:00:17]} 42. Qd3 {[%clk 0:00:34]}  Bxb6 {[%clk 0:00:17]} 43. Qxe3 {[%clk 0:00:34]}  Bxe3 {[%clk 0:00:17]} 44. Rxd6 {[%clk 0:00:35]}  Rb7+ {[%clk 0:00:17]} 45. Kc2 {[%clk 0:00:34]}  Bd4 {[%clk 0:00:16]} 46. Ba6 {[%clk 0:00:23]}  Rb2+ {[%clk 0:00:16]} 47. Kd3 {[%clk 0:00:23]}  Rf2 {[%clk 0:00:14]} 48. Rd8+ {[%clk 0:00:19]}  Kg7 {[%clk 0:00:14]} 49. d6 {[%clk 0:00:20]}  Rxf3+ {[%clk 0:00:15]} 50. Kc4 {[%clk 0:00:20]}  Ra3 {[%clk 0:00:15]} 51. d7 {[%clk 0:00:17]}  Bb6 {[%clk 0:00:14]} 52. Rb8 {[%clk 0:00:12]}  Rxa6 {[%clk 0:00:13]} 53. Rxb6 {[%clk 0:00:12]}  Ra4+ {[%clk 0:00:13]} 54. Kc5 {[%clk 0:00:10]}  Ra8 {[%clk 0:00:12]} 55. Kd6 {[%clk 0:00:09]}  Kf7 {[%clk 0:00:09]} 56. Rc6 {[%clk 0:00:07]}  f3 {[%clk 0:00:06]} 57. Rc8 {[%clk 0:00:07]}  Ra6+ {[%clk 0:00:06]} 58. Kxe5 {[%clk 0:00:07]}  Re6+ {[%clk 0:00:00]} 59. Kd5 {[%clk 0:00:07]} 1-0


[Site "https://www.chess.com"]

[Event "Titled Tuesday Blitz October 31 Early 2023"]
[White "JuniorJumper"]
[Black "Galchenko, Matvey"]
[BlackFideId "24175480"]
[WhiteElo "2610"]
[BlackElo "2913"]
[Result "1/2-1/2"]
[Round "2"]
[TimeControl "180+1"]
[Date "2023.10.31"]
[WhiteClock "0:00:08"]
[BlackClock "0:00:07"]
[Board "20"]

1. d4 {[%clk 0:03:00]}  Nf6 {[%clk 0:02:59]} 2. c4 {[%clk 0:03:01]}  c5 {[%clk 0:02:59]} 3. d5 {[%clk 0:03:01]}  e6 {[%clk 0:03:00]} 4. Nc3 {[%clk 0:03:01]}  exd5 {[%clk 0:03:01]} 5. cxd5 {[%clk 0:03:02]}  d6 {[%clk 0:03:01]} 6. e4 {[%clk 0:02:45]}  g6 {[%clk 0:03:02]} 7. f4 {[%clk 0:02:45]}  Bg7 {[%clk 0:03:03]} 8. Bb5+ {[%clk 0:02:46]}  Nfd7 {[%clk 0:03:03]} 9. a4 {[%clk 0:02:46]}  O-O {[%clk 0:03:03]} 10. Nf3 {[%clk 0:02:47]}  Na6 {[%clk 0:03:04]} 11. O-O {[%clk 0:02:46]}  Nb4 {[%clk 0:03:03]} 12. Re1 {[%clk 0:02:45]}  a6 {[%clk 0:03:04]} 13. Bf1 {[%clk 0:02:45]}  Re8 {[%clk 0:03:04]} 14. Be3 {[%clk 0:02:43]}  Nf6 {[%clk 0:02:57]} 15. Bf2 {[%clk 0:02:42]}  Bg4 {[%clk 0:02:55]} 16. Bh4 {[%clk 0:02:31]}  Qc7 {[%clk 0:02:15]} 17. Rc1 {[%clk 0:02:17]}  Nh5 {[%clk 0:02:08]} 18. h3 {[%clk 0:02:11]}  Bxf3 {[%clk 0:02:08]} 19. Qxf3 {[%clk 0:02:12]}  Rab8 {[%clk 0:02:08]} 20. g4 {[%clk 0:02:07]}  Bd4+ {[%clk 0:02:08]} 21. Bf2 {[%clk 0:01:44]}  Ng7 {[%clk 0:01:38]} 22. Nb5 {[%clk 0:01:21]}  Bxf2+ {[%clk 0:01:34]} 23. Qxf2 {[%clk 0:01:17]}  axb5 {[%clk 0:01:35]} 24. Bxb5 {[%clk 0:01:17]}  Re7 {[%clk 0:01:28]} 25. e5 {[%clk 0:01:17]}  Nxd5 {[%clk 0:01:23]} 26. Qd2 {[%clk 0:01:10]}  Nb4 {[%clk 0:01:06]} 27. exd6 {[%clk 0:01:06]}  Rxe1+ {[%clk 0:01:07]} 28. Rxe1 {[%clk 0:01:06]}  Qb6 {[%clk 0:01:05]} 29. d7 {[%clk 0:01:00]}  Nc6 {[%clk 0:00:41]} 30. Qd6 {[%clk 0:00:45]}  c4+ {[%clk 0:00:41]} 31. Kg2 {[%clk 0:00:42]}  Rd8 {[%clk 0:00:40]} 32. Re7 {[%clk 0:00:24]}  Qa5 {[%clk 0:00:24]} 33. Rxf7 {[%clk 0:00:24]}  Qb4 {[%clk 0:00:08]} 34. Qxb4 {[%clk 0:00:15]}  Nxb4 {[%clk 0:00:09]} 35. Re7 {[%clk 0:00:16]}  Kh8 {[%clk 0:00:10]} 36. f5 {[%clk 0:00:06]}  gxf5 {[%clk 0:00:08]} 37. gxf5 {[%clk 0:00:06]}  Nd5 {[%clk 0:00:08]} 38. Re8+ {[%clk 0:00:06]}  Nxe8 {[%clk 0:00:08]} 39. dxe8=Q+ {[%clk 0:00:07]}  Rxe8 {[%clk 0:00:09]} 40. Bxe8 {[%clk 0:00:07]}  Ne3+ {[%clk 0:00:03]} 41. Kf3 {[%clk 0:00:07]}  Nxf5 {[%clk 0:00:04]} 42. Kf4 {[%clk 0:00:07]}  Nd6 {[%clk 0:00:04]} 43. Bd7 {[%clk 0:00:07]}  Kg7 {[%clk 0:00:05]} 44. Ke5 {[%clk 0:00:07]}  Nf7+ {[%clk 0:00:04]} 45. Kd4 {[%clk 0:00:08]}  Kf6 {[%clk 0:00:04]} 46. Bg4 {[%clk 0:00:07]}  Ne5 {[%clk 0:00:03]} 47. Be2 {[%clk 0:00:07]}  h6 {[%clk 0:00:02]} 48. Bxc4 {[%clk 0:00:07]}  Ng6 {[%clk 0:00:03]} 49. Be2 {[%clk 0:00:07]}  Nf4 {[%clk 0:00:03]} 50. Bg4 {[%clk 0:00:07]}  b6 {[%clk 0:00:03]} 51. Kc4 {[%clk 0:00:07]}  Ke5 {[%clk 0:00:04]} 52. Kb5 {[%clk 0:00:07]}  Nd5 {[%clk 0:00:04]} 53. b4 {[%clk 0:00:07]}  Kd6 {[%clk 0:00:03]} 54. Bf3 {[%clk 0:00:07]}  Nc3+ {[%clk 0:00:03]} 55. Kxb6 {[%clk 0:00:05]}  Nxa4+ {[%clk 0:00:04]} 56. Ka6 {[%clk 0:00:05]}  Kc7 {[%clk 0:00:04]} 57. b5 {[%clk 0:00:05]}  Nc5+ {[%clk 0:00:05]} 58. Ka5 {[%clk 0:00:05]}  Ne6 {[%clk 0:00:04]} 59. b6+ {[%clk 0:00:05]}  Kb8 {[%clk 0:00:04]} 60. Bg4 {[%clk 0:00:05]}  Nd4 {[%clk 0:00:04]} 61. Kb4 {[%clk 0:00:06]}  Kb7 {[%clk 0:00:04]} 62. Kc5 {[%clk 0:00:07]}  Nb3+ {[%clk 0:00:05]} 63. Kb4 {[%clk 0:00:07]}  Nd4 {[%clk 0:00:05]} 64. Kc5 {[%clk 0:00:07]}  Nb3+ {[%clk 0:00:06]} 65. Kc4 {[%clk 0:00:07]}  Nd2+ {[%clk 0:00:05]} 66. Kd3 {[%clk 0:00:07]}  Nb3 {[%clk 0:00:03]} 67. Kc4 {[%clk 0:00:08]}  Nd2+ {[%clk 0:00:02]} 68. Kb5 {[%clk 0:00:08]}  Kb8 {[%clk 0:00:02]} 69. Kc6 {[%clk 0:00:08]}  Nc4 {[%clk 0:00:02]} 70. Kc5 {[%clk 0:00:08]}  Ne5 {[%clk 0:00:02]} 71. Kd4 {[%clk 0:00:08]}  Nf7 {[%clk 0:00:02]} 72. Kd5 {[%clk 0:00:08]}  Kb7 {[%clk 0:00:03]} 73. Ke6 {[%clk 0:00:08]}  Ng5+ {[%clk 0:00:03]} 74. Kd6 {[%clk 0:00:07]}  Nxh3 {[%clk 0:00:04]} 75. Bxh3 {[%clk 0:00:05]}  Kxb6 {[%clk 0:00:05]} 76. Ke5 {[%clk 0:00:05]}  h5 {[%clk 0:00:06]} 77. Kf4 {[%clk 0:00:06]}  h4 {[%clk 0:00:06]} 78. Kg4 {[%clk 0:00:07]}  Kc5 {[%clk 0:00:07]} 79. Kxh4 {[%clk 0:00:08]} 1/2-1/2


[Site "https://www.chess.com"]

[Event "Titled Tuesday Blitz October 31 Early 2023"]
[White "Ilamparthi A R"]
[Black "ArtemDyachuk"]
[WhiteFideId "45015775"]
[WhiteElo "2913"]
[BlackElo "2609"]
[Result "1-0"]
[Round "2"]
[TimeControl "180+1"]
[Date "2023.10.31"]
[WhiteClock "0:00:56"]
[BlackClock "0:00:08"]
[Board "21"]

1. e4 {[%clk 0:03:00]}  c5 {[%clk 0:02:57]} 2. Nf3 {[%clk 0:03:00]}  d6 {[%clk 0:02:56]} 3. g3 {[%clk 0:02:59]}  Nf6 {[%clk 0:02:55]} 4. d3 {[%clk 0:02:59]}  g6 {[%clk 0:02:54]} 5. Bg2 {[%clk 0:02:59]}  Bg7 {[%clk 0:02:54]} 6. O-O {[%clk 0:02:59]}  Nc6 {[%clk 0:02:54]} 7. Re1 {[%clk 0:03:00]}  O-O {[%clk 0:02:52]} 8. c3 {[%clk 0:03:00]}  e5 {[%clk 0:02:51]} 9. a3 {[%clk 0:02:58]}  a5 {[%clk 0:02:49]} 10. a4 {[%clk 0:02:58]}  h6 {[%clk 0:02:46]} 11. Na3 {[%clk 0:02:57]}  d5 {[%clk 0:02:43]} 12. exd5 {[%clk 0:02:57]}  Nxd5 {[%clk 0:02:44]} 13. Nc4 {[%clk 0:02:57]}  Re8 {[%clk 0:02:44]} 14. Qb3 {[%clk 0:02:57]}  Qc7 {[%clk 0:02:37]} 15. Bd2 {[%clk 0:02:42]}  Bf5 {[%clk 0:02:28]} 16. Nfxe5 {[%clk 0:02:12]}  Nxe5 {[%clk 0:02:07]} 17. Nxe5 {[%clk 0:02:04]}  Rxe5 {[%clk 0:02:01]} 18. Rxe5 {[%clk 0:02:04]}  Qxe5 {[%clk 0:01:59]} 19. Re1 {[%clk 0:02:03]}  Qf6 {[%clk 0:01:33]} 20. Qxd5 {[%clk 0:01:54]}  Rd8 {[%clk 0:01:30]} 21. Qxc5 {[%clk 0:01:52]}  Rxd3 {[%clk 0:01:29]} 22. Be3 {[%clk 0:01:52]}  Qd8 {[%clk 0:01:24]} 23. h4 {[%clk 0:01:17]}  Rd1 {[%clk 0:01:17]} 24. Rxd1 {[%clk 0:01:13]}  Qxd1+ {[%clk 0:01:18]} 25. Kh2 {[%clk 0:01:13]}  Qxa4 {[%clk 0:01:18]} 26. Bxb7 {[%clk 0:01:13]}  Qb3 {[%clk 0:01:18]} 27. Qb6 {[%clk 0:01:10]}  Qd1 {[%clk 0:00:23]} 28. Qxa5 {[%clk 0:01:03]}  Qb1 {[%clk 0:00:24]} 29. Qa8+ {[%clk 0:00:59]}  Kh7 {[%clk 0:00:24]} 30. Bd5 {[%clk 0:00:57]}  Be6 {[%clk 0:00:06]} 31. Bxe6 {[%clk 0:00:57]}  fxe6 {[%clk 0:00:07]} 32. Qb7 {[%clk 0:00:58]}  e5 {[%clk 0:00:04]} 33. c4 {[%clk 0:00:58]}  Qd3 {[%clk 0:00:02]} 34. c5 {[%clk 0:00:58]}  e4 {[%clk 0:00:02]} 35. c6 {[%clk 0:00:56]}  Qd5 {[%clk 0:00:03]} 36. Qd7 {[%clk 0:00:55]}  Qc4 {[%clk 0:00:02]} 37. c7 {[%clk 0:00:54]}  Qxc7 {[%clk 0:00:02]} 38. Qxc7 {[%clk 0:00:54]}  Kg8 {[%clk 0:00:02]} 39. b4 {[%clk 0:00:54]}  g5 {[%clk 0:00:03]} 40. b5 {[%clk 0:00:54]}  Be5 {[%clk 0:00:04]} 41. Qxe5 {[%clk 0:00:54]}  gxh4 {[%clk 0:00:04]} 42. gxh4 {[%clk 0:00:54]}  Kf7 {[%clk 0:00:04]} 43. b6 {[%clk 0:00:55]}  h5 {[%clk 0:00:05]} 44. b7 {[%clk 0:00:55]}  Kg6 {[%clk 0:00:06]} 45. Qd6+ {[%clk 0:00:55]}  Kh7 {[%clk 0:00:07]} 46. Qh6+ {[%clk 0:00:54]}  Kg8 {[%clk 0:00:07]} 47. b8=Q+ {[%clk 0:00:55]}  Kf7 {[%clk 0:00:08]} 48. Qbf8# {[%clk 0:00:56]} 1-0


[Site "https://www.chess.com"]

[Event "Titled Tuesday Blitz October 31 Early 2023"]
[White "Bharath Subramaniyam H"]
[Black "FoxOnTheRun97"]
[WhiteFideId "46634827"]
[WhiteElo "2908"]
[BlackElo "2608"]
[Result "1-0"]
[Round "2"]
[TimeControl "180+1"]
[Date "2023.10.31"]
[WhiteClock "0:00:49"]
[BlackClock "0:00:09"]
[Board "23"]

1. e4 {[%clk 0:02:52]}  c6 {[%clk 0:02:56]} 2. d4 {[%clk 0:02:50]}  d5 {[%clk 0:02:57]} 3. e5 {[%clk 0:02:51]}  Bf5 {[%clk 0:02:56]} 4. g4 {[%clk 0:02:51]}  Bg6 {[%clk 0:02:56]} 5. Ne2 {[%clk 0:02:51]}  e6 {[%clk 0:02:55]} 6. Nf4 {[%clk 0:02:51]}  Be7 {[%clk 0:01:38]} 7. Bg2 {[%clk 0:02:51]}  c5 {[%clk 0:01:37]} 8. c4 {[%clk 0:02:47]}  cxd4 {[%clk 0:01:26]} 9. cxd5 {[%clk 0:02:46]}  exd5 {[%clk 0:01:24]} 10. O-O {[%clk 0:02:38]}  Nc6 {[%clk 0:01:20]} 11. Re1 {[%clk 0:02:30]}  Nh6 {[%clk 0:01:04]} 12. Nxd5 {[%clk 0:02:26]}  O-O {[%clk 0:01:02]} 13. Bxh6 {[%clk 0:02:23]}  gxh6 {[%clk 0:01:01]} 14. Nd2 {[%clk 0:02:17]}  Kh8 {[%clk 0:00:55]} 15. f4 {[%clk 0:02:09]}  f5 {[%clk 0:00:41]} 16. gxf5 {[%clk 0:01:42]}  Bxf5 {[%clk 0:00:40]} 17. Nxe7 {[%clk 0:01:32]}  Qxe7 {[%clk 0:00:38]} 18. Bxc6 {[%clk 0:01:14]}  bxc6 {[%clk 0:00:39]} 19. Qf3 {[%clk 0:01:13]}  Rg8+ {[%clk 0:00:38]} 20. Kh1 {[%clk 0:01:10]}  Qe6 {[%clk 0:00:37]} 21. Rg1 {[%clk 0:01:07]}  Rab8 {[%clk 0:00:31]} 22. b3 {[%clk 0:01:04]}  Bg4 {[%clk 0:00:20]} 23. Qe4 {[%clk 0:01:03]}  Bf5 {[%clk 0:00:20]} 24. Rxg8+ {[%clk 0:00:56]}  Rxg8 {[%clk 0:00:20]} 25. Qxd4 {[%clk 0:00:56]}  h5 {[%clk 0:00:09]} 26. Rg1 {[%clk 0:00:54]}  Rxg1+ {[%clk 0:00:08]} 27. Kxg1 {[%clk 0:00:54]}  Qg6+ {[%clk 0:00:09]} 28. Kf2 {[%clk 0:00:53]}  Qg4 {[%clk 0:00:09]} 29. Nf3 {[%clk 0:00:50]}  Kg8 {[%clk 0:00:10]} 30. Qd8+ {[%clk 0:00:48]}  Kf7 {[%clk 0:00:10]} 31. Ng5+ {[%clk 0:00:48]}  Kg7 {[%clk 0:00:09]} 32. Qf6+ {[%clk 0:00:47]}  Kg8 {[%clk 0:00:09]} 33. Qf7+ {[%clk 0:00:48]}  Kh8 {[%clk 0:00:09]} 34. Qf8# {[%clk 0:00:49]} 1-0


[Site "https://www.chess.com"]